[Event "Elite Hotels Open 2023"]
[Site "Elite Stadshotellet, Kungsgatan 6, Vaxjo, Sweden"]
[Date "2023.02.10"]
[Round "2.11"]
[White "Berg, Roy"]
[Black "Poley, Vladimir"]
[Result "0-1"]
[TimeControl "15 minutes + 5 seconds per move from move one (Round 1 - 4) / 90 minutes + 30 seconds per move from move one (Round 5 - 8)"]
[BlackTitle "IM"]
[WhiteFideId "1711458"]
[BlackFideId "13500090"]
[WhiteElo "1948"]
[BlackElo "2325"]

1. d4 {[%clk 00:15:09]} g6 {[%clk 00:15:08]} {[%emt 00:00:03]} 2. c4 {[%clk
00:15:12]} {[%emt 00:00:02]} Bg7 {[%clk 00:15:12]} 3. Nf3 {[%clk 00:15:13]}
{[%emt 00:00:05]} d6 {[%clk 00:15:15]} {[%emt 00:00:02]} 4. g3 {[%clk
00:15:14]} {[%emt 00:00:04]} Nf6 {[%clk 00:15:08]} {[%emt 00:00:12]} 5. Bg2
{[%clk 00:15:17]} {[%emt 00:00:02]} O-O {[%clk 00:15:10]} {[%emt 00:00:03]} 6.
O-O {[%clk 00:15:19]} {[%emt 00:00:03]} Re8 {[%clk 00:15:12]} {[%emt 00:00:02]}
7. Nc3 {[%clk 00:15:12]} {[%emt 00:00:13]} Bd7 {[%clk 00:15:16]} {[%emt
00:00:02]} 8. e4 {[%clk 00:14:38]} {[%emt 00:00:37]} e5 {[%clk 00:15:19]}
{[%emt 00:00:02]} 9. d5 {[%clk 00:14:41]} {[%emt 00:00:02]} a5 {[%clk
00:15:15]} {[%emt 00:00:08]} 10. h3 {[%clk 00:14:37]} {[%emt 00:00:10]} Na6
{[%clk 00:15:18]} {[%emt 00:00:03]} 11. Be3 {[%clk 00:14:24]} {[%emt 00:00:17]}
Nc5 {[%clk 00:15:18]} {[%emt 00:00:05]} 12. Ne1 {[%clk 00:14:09]} {[%emt
00:00:19]} b6 {[%clk 00:14:17]} {[%emt 00:01:07]} 13. Nd3 {[%clk 00:14:10]}
{[%emt 00:00:04]} Nh5 {[%clk 00:13:50]} {[%emt 00:00:32]} 14. Nxc5 {[%clk
00:12:59]} {[%emt 00:01:16]} bxc5 {[%clk 00:13:52]} {[%emt 00:00:03]} 15. Qd2
{[%clk 00:12:16]} {[%emt 00:00:48]} f5 {[%clk 00:13:46]} {[%emt 00:00:12]} 16.
Ne2 {[%clk 00:10:38]} {[%emt 00:01:42]} Qf6 {[%clk 00:13:09]} {[%emt 00:00:43]}
17. Bg5 {[%clk 00:10:04]} {[%emt 00:00:39]} Qf8 {[%clk 00:13:09]} {[%emt
00:00:04]} 18. Be3 {[%clk 00:09:51]} {[%emt 00:00:18]} Rab8 {[%clk 00:12:06]}
{[%emt 00:01:08]} 19. Rab1 {[%clk 00:09:48]} {[%emt 00:00:08]} Rb4 {[%clk
00:11:27]} {[%emt 00:00:44]} 20. Qc1 {[%clk 00:09:17]} {[%emt 00:00:35]} a4
{[%clk 00:10:41]} {[%emt 00:00:52]} 21. Bd2 {[%clk 00:08:52]} {[%emt 00:00:31]}
Rbb8 {[%clk 00:10:43]} {[%emt 00:00:02]} 22. b4 {[%clk 00:08:44]} {[%emt
00:00:14]} axb3 {[%clk 00:10:27]} {[%emt 00:00:20]} 23. axb3 {[%clk 00:08:24]}
{[%emt 00:00:25]} fxe4 {[%clk 00:09:54]} {[%emt 00:00:38]} 24. Nc3 {[%clk
00:07:42]} {[%emt 00:00:46]} Nf4 {[%clk 00:09:06]} {[%emt 00:00:53]} 25. Kh2
{[%clk 00:04:05]} {[%emt 00:03:42]} Nxg2 {[%clk 00:09:04]} {[%emt 00:00:07]} 26.
Kxg2 {[%clk 00:04:07]} {[%emt 00:00:03]} Qf3+ {[%clk 00:09:01]} {[%emt
00:00:08]} 27. Kh2 {[%clk 00:04:09]} {[%emt 00:00:04]} Qh5 {[%clk 00:08:04]}
{[%emt 00:01:01]} 28. h4 {[%clk 00:04:01]} {[%emt 00:00:13]} Qg4 {[%clk
00:08:05]} {[%emt 00:00:04]} 29. Rh1 {[%clk 00:03:46]} {[%emt 00:00:21]} Rf8
{[%clk 00:08:06]} {[%emt 00:00:04]} 30. Be3 {[%clk 00:03:48]} {[%emt 00:00:03]}
Bh6 {[%clk 00:07:59]} {[%emt 00:00:11]} 31. Kg1 {[%clk 00:03:28]} {[%emt
00:00:25]} Rxf2 {[%clk 00:07:28]} {[%emt 00:00:36]} 32. Kxf2 {[%clk 00:03:17]}
{[%emt 00:00:16]} Qf3+ {[%clk 00:07:28]} {[%emt 00:00:05]} 33. Ke1 {[%clk
00:02:37]} {[%emt 00:00:44]} Bxe3 {[%clk 00:07:30]} {[%emt 00:00:03]} 34. Qd1
{[%clk 00:02:17]} {[%emt 00:00:25]} Qf2# {[%clk 00:07:31]} {[%emt 00:00:04]}
0-1

[Event "Elite Hotels Open 2023"]
[Site "Elite Stadshotellet, Kungsgatan 6, Vaxjo, Sweden"]
[Date "2023.02.10"]
[Round "2.12"]
[White "Bellon Lopez, Juan Manuel"]
[Black "Halvarsson, Peter"]
[Result "1-0"]
[TimeControl "15 minutes + 5 seconds per move from move one (Round 1 - 4) / 90 minutes + 30 seconds per move from move one (Round 5 - 8)"]
[WhiteTitle "GM"]
[WhiteFideId "2200031"]
[BlackFideId "1701843"]
[WhiteElo "2303"]
[BlackElo "1951"]

1. d4 {[%clk 00:15:09]} {[%emt 00:00:01]} g6 {[%clk 00:15:07]} {[%emt
00:00:03]} 2. g3 {[%clk 00:15:12]} {[%emt 00:00:02]} Bg7 {[%clk 00:15:09]}
{[%emt 00:00:02]} 3. Bg2 {[%clk 00:15:17]} Nf6 {[%clk 00:14:41]} {[%emt
00:00:35]} 4. e4 {[%clk 00:15:19]} {[%emt 00:00:02]} O-O {[%clk 00:14:41]}
{[%emt 00:00:05]} 5. Nc3 {[%clk 00:15:19]} {[%emt 00:00:05]} d6 {[%clk
00:14:17]} {[%emt 00:00:29]} 6. h3 {[%clk 00:15:20]} {[%emt 00:00:03]} c6
{[%clk 00:14:09]} {[%emt 00:00:14]} 7. a4 {[%clk 00:15:15]} {[%emt 00:00:10]}
Nbd7 {[%clk 00:13:32]} {[%emt 00:00:43]} 8. Nge2 {[%clk 00:15:15]} {[%emt
00:00:04]} e5 {[%clk 00:13:28]} {[%emt 00:00:09]} 9. Be3 {[%clk 00:15:17]}
{[%emt 00:00:02]} Qe7 {[%clk 00:13:21]} {[%emt 00:00:13]} 10. O-O {[%clk
00:15:08]} {[%emt 00:00:14]} b6 {[%clk 00:13:12]} {[%emt 00:00:14]} 11. Re1
{[%clk 00:14:39]} {[%emt 00:00:34]} Rb8 {[%clk 00:12:59]} {[%emt 00:00:19]} 12.
Qd2 {[%clk 00:14:14]} {[%emt 00:00:29]} Bb7 {[%clk 00:12:00]} {[%emt 00:01:04]}
13. Rad1 {[%clk 00:14:00]} {[%emt 00:00:19]} Rbd8 {[%clk 00:11:54]} {[%emt
00:00:11]} 14. f4 {[%clk 00:13:30]} {[%emt 00:00:34]} Rfe8 {[%clk 00:10:22]}
{[%emt 00:01:38]} 15. Kh2 {[%clk 00:13:16]} {[%emt 00:00:19]} Qf8 {[%clk
00:09:46]} {[%emt 00:00:41]} 16. g4 {[%clk 00:12:14]} {[%emt 00:01:06]} exd4
{[%clk 00:09:22]} {[%emt 00:00:30]} 17. Bxd4 {[%clk 00:11:41]} {[%emt
00:00:37]} c5 {[%emt 00:00:26]} 18. Bxf6 {[%clk 00:11:24]} {[%emt 00:00:14]}
Nxf6 19. Ng3 {[%emt 00:01:29]} Bc6 {[%clk 00:07:56]} {[%emt 00:00:01]} 20. Nb5
{[%clk 00:09:47]} {[%emt 00:01:42]} Bxb5 21. axb5 {[%clk 00:08:35]} Re6 22. c3
{[%clk 00:07:10]} {[%emt 00:02:35]} Ne8 23. Ra1 {[%emt 00:02:16]} Qe7 {[%clk
00:04:29]} 24. Bf1 {[%clk 00:06:30]} {[%emt 00:00:44]} Qc7 {[%clk 00:03:34]}
{[%emt 00:01:01]} 25. Bc4 {[%emt 00:00:07]} Re7 {[%clk 00:03:38]} 26. g5 {[%clk
00:06:00]} {[%emt 00:00:34]} Qd7 {[%clk 00:03:03]} {[%emt 00:00:40]} 27. Qd3
{[%clk 00:05:38]} {[%emt 00:00:27]} Ra8 {[%clk 00:02:44]} {[%emt 00:00:23]} 28.
Bd5 {[%clk 00:05:41]} {[%emt 00:00:03]} Rc8 {[%clk 00:02:45]} {[%emt 00:00:03]}
29. Bc6 {[%clk 00:05:13]} {[%emt 00:00:34]} Rxc6 {[%clk 00:02:46]} {[%emt
00:00:05]} 30. bxc6 {[%clk 00:05:16]} {[%emt 00:00:01]} Qxc6 {[%clk 00:02:50]}
31. Rad1 {[%clk 00:04:57]} {[%emt 00:00:24]} a5 {[%clk 00:02:43]} {[%emt
00:00:13]} 32. Qd5 {[%clk 00:04:56]} {[%emt 00:00:05]} Qb5 {[%clk 00:02:41]}
{[%emt 00:00:07]} 33. Rd2 {[%clk 00:04:33]} {[%emt 00:00:27]} h6 {[%clk
00:02:22]} {[%emt 00:00:25]} 34. h4 {[%clk 00:04:34]} {[%emt 00:00:04]} Re6
{[%clk 00:01:44]} {[%emt 00:00:43]} 35. Rf2 {[%clk 00:03:47]} {[%emt 00:00:52]}
hxg5 {[%clk 00:01:14]} {[%emt 00:00:35]} 36. hxg5 {[%clk 00:03:48]} {[%emt
00:00:04]} Bf8 {[%clk 00:00:56]} {[%emt 00:00:23]} 37. e5 {[%clk 00:03:05]}
{[%emt 00:00:48]} Ng7 {[%clk 00:00:36]} {[%emt 00:00:25]} 38. Ne4 {[%clk
00:02:58]} {[%emt 00:00:12]} dxe5 {[%clk 00:00:17]} {[%emt 00:00:24]} 39. Nf6+
{[%clk 00:02:59]} {[%emt 00:00:03]} Kh8 {[%clk 00:00:21]} {[%emt 00:00:01]} 40.
Rxe5 {[%clk 00:02:46]} {[%emt 00:00:20]} Rd6 {[%clk 00:00:11]} {[%emt
00:00:14]} 41. Qa8 {[%clk 00:02:28]} {[%emt 00:00:22]} Rxf6 {[%clk 00:00:07]}
{[%emt 00:00:10]} 42. Qxf8+ {[%clk 00:02:20]} {[%emt 00:00:13]} Kh7 {[%clk
00:00:11]} 43. gxf6 {[%clk 00:02:19]} {[%emt 00:00:06]} 1-0

[Event "Elite Hotels Open 2023"]
[Site "Elite Stadshotellet, Kungsgatan 6, Vaxjo, Sweden"]
[Date "2023.02.10"]
[Round "2.13"]
[White "Cedervall, Magnus"]
[Black "Falkevall, Axel"]
[Result "1/2-1/2"]
[TimeControl "15 minutes + 5 seconds per move from move one (Round 1 - 4) / 90 minutes + 30 seconds per move from move one (Round 5 - 8)"]
[BlackTitle "FM"]
[WhiteFideId "1736345"]
[BlackFideId "1735560"]
[WhiteElo "1946"]
[BlackElo "2299"]

1. e4 {[%clk 00:15:06]} {[%emt 00:00:03]} e5 {[%clk 00:15:09]} {[%emt
00:00:02]} 2. Nf3 {[%clk 00:15:08]} {[%emt 00:00:02]} Nc6 {[%clk 00:15:13]}
{[%emt 00:00:02]} 3. Nc3 {[%clk 00:15:10]} {[%emt 00:00:03]} Nf6 {[%clk
00:15:13]} {[%emt 00:00:04]} 4. d4 {[%clk 00:15:07]} {[%emt 00:00:09]} exd4
{[%clk 00:15:17]} {[%emt 00:00:02]} 5. Nxd4 {[%clk 00:15:08]} {[%emt 00:00:03]}
Bb4 {[%clk 00:15:11]} {[%emt 00:00:11]} 6. Nxc6 {[%clk 00:15:02]} {[%emt
00:00:11]} bxc6 {[%clk 00:15:15]} {[%emt 00:00:01]} 7. Bd3 {[%clk 00:14:59]}
{[%emt 00:00:08]} d5 {[%clk 00:15:17]} {[%emt 00:00:03]} 8. exd5 {[%clk
00:15:00]} {[%emt 00:00:05]} O-O {[%clk 00:15:18]} {[%emt 00:00:03]} 9. O-O
{[%clk 00:14:55]} {[%emt 00:00:10]} Bg4 {[%clk 00:15:09]} {[%emt 00:00:13]} 10.
Ne2 {[%clk 00:13:56]} {[%emt 00:01:05]} cxd5 {[%clk 00:15:06]} {[%emt
00:00:08]} 11. c3 {[%clk 00:13:55]} {[%emt 00:00:06]} Bd6 {[%clk 00:14:51]}
{[%emt 00:00:19]} 12. h3 {[%clk 00:13:54]} {[%emt 00:00:06]} Bh5 {[%clk
00:14:48]} {[%emt 00:00:09]} 13. Qc2 {[%clk 00:13:44]} {[%emt 00:00:16]} Bg6
{[%clk 00:14:06]} {[%emt 00:00:46]} 14. Bg5 {[%clk 00:13:05]} {[%emt 00:00:43]}
Rb8 {[%clk 00:11:46]} {[%emt 00:02:26]} 15. b3 {[%clk 00:12:18]} {[%emt
00:00:53]} c5 {[%clk 00:11:22]} {[%emt 00:00:29]} 16. Rad1 {[%clk 00:11:56]}
{[%emt 00:00:26]} Be7 {[%clk 00:10:49]} {[%emt 00:00:38]} 17. Nf4 {[%clk
00:10:54]} {[%emt 00:01:08]} d4 {[%clk 00:08:36]} {[%emt 00:02:18]} 18. Bxg6
{[%clk 00:09:38]} {[%emt 00:01:20]} hxg6 {[%clk 00:08:38]} {[%emt 00:00:03]} 19.
cxd4 {[%clk 00:09:28]} {[%emt 00:00:15]} cxd4 {[%clk 00:08:41]} {[%emt
00:00:02]} 20. Qc4 {[%clk 00:09:08]} {[%emt 00:00:25]} Rb4 {[%clk 00:07:56]}
{[%emt 00:00:50]} 21. Qc6 {[%clk 00:07:28]} {[%emt 00:01:45]} Rb6 {[%clk
00:04:34]} {[%emt 00:03:27]} 22. Qc4 {[%clk 00:07:25]} {[%emt 00:00:07]} Rb4
{[%clk 00:04:04]} {[%emt 00:00:36]} 23. Qc6 {[%clk 00:07:18]} {[%emt 00:00:12]}
Rb6 {[%clk 00:03:52]} {[%emt 00:00:16]} 1/2-1/2

[Event "Elite Hotels Open 2023"]
[Site "Elite Stadshotellet, Kungsgatan 6, Vaxjo, Sweden"]
[Date "2023.02.10"]
[Round "2.14"]
[White "Ernst, Thomas"]
[Black "Ravik, Andreas"]
[Result "1-0"]
[TimeControl "15 minutes + 5 seconds per move from move one (Round 1 - 4) / 90 minutes + 30 seconds per move from move one (Round 5 - 8)"]
[WhiteTitle "GM"]
[WhiteFideId "1700065"]
[BlackFideId "1722522"]
[WhiteElo "2286"]
[BlackElo "1946"]

1. e4 {[%clk 00:15:07]} {[%emt 00:00:02]} c5 {[%clk 00:15:03]} {[%emt
00:00:07]} 2. Nf3 {[%clk 00:15:09]} {[%emt 00:00:03]} g6 {[%clk 00:14:50]}
{[%emt 00:00:17]} 3. c4 {[%clk 00:15:11]} {[%emt 00:00:04]} Bg7 {[%clk
00:14:46]} {[%emt 00:00:10]} 4. d4 {[%clk 00:15:13]} {[%emt 00:00:03]} cxd4
{[%clk 00:14:36]} {[%emt 00:00:15]} 5. Nxd4 {[%clk 00:15:16]} {[%emt 00:00:02]}
Nc6 {[%clk 00:14:22]} {[%emt 00:00:19]} 6. Be3 {[%clk 00:15:16]} {[%emt
00:00:04]} Nf6 {[%clk 00:13:23]} {[%emt 00:01:03]} 7. Nc3 {[%clk 00:15:17]}
{[%emt 00:00:05]} d6 {[%clk 00:13:11]} {[%emt 00:00:17]} 8. Be2 {[%clk
00:15:15]} {[%emt 00:00:07]} O-O {[%clk 00:13:03]} {[%emt 00:00:13]} 9. O-O
{[%clk 00:15:15]} {[%emt 00:00:05]} Bd7 {[%clk 00:12:58]} {[%emt 00:00:10]} 10.
f3 {[%clk 00:15:06]} {[%emt 00:00:14]} Rc8 {[%clk 00:11:59]} {[%emt 00:01:05]}
11. Qd2 {[%clk 00:14:56]} {[%emt 00:00:15]} Nxd4 {[%clk 00:11:26]} {[%emt
00:00:38]} 12. Bxd4 {[%clk 00:14:58]} {[%emt 00:00:02]} b6 {[%clk 00:11:19]}
{[%emt 00:00:12]} 13. Rac1 {[%clk 00:14:34]} {[%emt 00:00:28]} Bc6 {[%clk
00:11:16]} {[%emt 00:00:09]} 14. b4 {[%clk 00:14:20]} {[%emt 00:00:19]} e6
{[%clk 00:10:55]} {[%emt 00:00:26]} 15. Rfd1 {[%clk 00:14:11]} {[%emt
00:00:15]} Qe7 {[%clk 00:09:53]} {[%emt 00:01:08]} 16. Bf1 {[%clk 00:13:59]}
{[%emt 00:00:15]} Rfd8 {[%clk 00:09:27]} {[%emt 00:00:32]} 17. Be3 {[%clk
00:12:40]} {[%emt 00:01:23]} Ne8 {[%clk 00:09:10]} {[%emt 00:00:22]} 18. Bg5
{[%clk 00:12:22]} {[%emt 00:00:23]} Bf6 {[%clk 00:08:53]} {[%emt 00:00:23]} 19.
Bxf6 {[%clk 00:12:23]} {[%emt 00:00:04]} Qxf6 {[%clk 00:08:56]} {[%emt
00:00:02]} 20. a4 {[%clk 00:12:08]} {[%emt 00:00:20]} Nc7 {[%clk 00:07:48]}
{[%emt 00:01:12]} 21. Qe3 {[%clk 00:11:53]} {[%emt 00:00:18]} Bb7 {[%clk
00:06:24]} {[%emt 00:01:32]} 22. Nb5 {[%clk 00:10:49]} {[%emt 00:01:08]} Nxb5
{[%clk 00:06:18]} {[%emt 00:00:11]} 23. axb5 {[%clk 00:10:52]} {[%emt
00:00:03]} d5 {[%clk 00:05:49]} {[%emt 00:00:34]} 24. cxd5 {[%clk 00:10:34]}
{[%emt 00:00:23]} Rxc1 {[%clk 00:05:45]} {[%emt 00:00:09]} 25. Rxc1 {[%clk
00:10:32]} {[%emt 00:00:07]} exd5 {[%clk 00:05:43]} {[%emt 00:00:07]} 26. Rc7
{[%clk 00:10:11]} {[%emt 00:00:25]} Ba8 {[%clk 00:04:26]} {[%emt 00:01:23]} 27.
e5 {[%clk 00:08:37]} {[%emt 00:01:38]} Qe6 {[%clk 00:04:13]} {[%emt 00:00:18]}
28. Qd4 {[%clk 00:08:28]} {[%emt 00:00:13]} Qe8 {[%clk 00:03:50]} {[%emt
00:00:30]} 29. Rxa7 {[%clk 00:08:08]} {[%emt 00:00:24]} Qe6 {[%clk 00:03:18]}
{[%emt 00:00:37]} 30. g3 {[%clk 00:07:08]} {[%emt 00:01:04]} Rc8 {[%clk
00:02:43]} {[%emt 00:00:42]} 31. Qa1 {[%clk 00:05:59]} {[%emt 00:01:13]} Qe8
{[%clk 00:02:28]} {[%emt 00:00:21]} 32. e6 {[%clk 00:05:37]} {[%emt 00:00:27]}
fxe6 {[%clk 00:02:15]} {[%emt 00:00:18]} 1-0

[Event "Elite Hotels Open 2023"]
[Site "Elite Stadshotellet, Kungsgatan 6, Vaxjo, Sweden"]
[Date "2023.02.10"]
[Round "2.15"]
[White "Nystrom, Jonas"]
[Black "Wagner, Stephan"]
[Result "0-1"]
[TimeControl "15 minutes + 5 seconds per move from move one (Round 1 - 4) / 90 minutes + 30 seconds per move from move one (Round 5 - 8)"]
[WhiteFideId "1735268"]
[BlackFideId "1613251"]
[WhiteElo "1936"]
[BlackElo "2264"]

1. e4 {[%clk 00:15:09]} c6 {[%clk 00:15:06]} {[%emt 00:00:04]} 2. d4 {[%clk
00:15:11]} {[%emt 00:00:04]} d5 {[%clk 00:15:02]} {[%emt 00:00:09]} 3. Nc3
{[%clk 00:15:12]} {[%emt 00:00:04]} dxe4 {[%clk 00:15:01]} {[%emt 00:00:05]} 4.
Nxe4 {[%clk 00:15:12]} {[%emt 00:00:06]} Bf5 {[%clk 00:15:03]} {[%emt
00:00:02]} 5. Ng3 {[%clk 00:15:08]} {[%emt 00:00:09]} Bg6 {[%clk 00:15:06]}
{[%emt 00:00:02]} 6. h4 {[%clk 00:15:04]} {[%emt 00:00:10]} h6 {[%clk
00:15:07]} {[%emt 00:00:04]} 7. Nf3 {[%clk 00:14:57]} {[%emt 00:00:12]} Nd7
{[%clk 00:15:05]} {[%emt 00:00:07]} 8. h5 {[%clk 00:14:38]} {[%emt 00:00:24]}
Bh7 {[%clk 00:15:09]} {[%emt 00:00:02]} 9. Bd3 {[%clk 00:14:36]} {[%emt
00:00:07]} Bxd3 {[%clk 00:15:11]} {[%emt 00:00:02]} 10. Qxd3 {[%clk 00:14:37]}
{[%emt 00:00:04]} e6 {[%clk 00:15:12]} {[%emt 00:00:04]} 11. Bd2 {[%clk
00:14:15]} {[%emt 00:00:27]} Ngf6 {[%clk 00:15:12]} {[%emt 00:00:04]} 12. O-O-O
{[%clk 00:13:07]} {[%emt 00:01:13]} Be7 {[%clk 00:15:12]} {[%emt 00:00:04]} 13.
Ne4 {[%clk 00:12:26]} {[%emt 00:00:47]} Nxe4 {[%clk 00:15:14]} {[%emt
00:00:03]} 14. Qxe4 {[%clk 00:12:27]} {[%emt 00:00:04]} Nf6 {[%clk 00:15:16]}
{[%emt 00:00:03]} 15. Qe2 {[%clk 00:12:23]} {[%emt 00:00:09]} Qd5 {[%clk
00:15:15]} {[%emt 00:00:06]} 16. Kb1 {[%clk 00:11:32]} {[%emt 00:00:57]} Qb5
{[%clk 00:15:08]} {[%emt 00:00:11]} 17. c4 {[%clk 00:10:02]} {[%emt 00:01:36]}
Qf5+ {[%clk 00:15:02]} {[%emt 00:00:11]} 18. Ka1 {[%clk 00:09:51]} {[%emt
00:00:16]} Qe4 {[%clk 00:14:57]} {[%emt 00:00:10]} 19. Qxe4 {[%clk 00:07:49]}
{[%emt 00:02:07]} Nxe4 {[%clk 00:15:00]} {[%emt 00:00:02]} 20. Rhf1 {[%clk
00:07:26]} {[%emt 00:00:28]} O-O {[%clk 00:13:22]} {[%emt 00:01:43]} 21. Ne5
{[%clk 00:06:29]} {[%emt 00:01:02]} Rad8 {[%clk 00:12:33]} {[%emt 00:00:54]} 22.
Be3 {[%clk 00:06:19]} {[%emt 00:00:14]} Bd6 {[%clk 00:09:59]} {[%emt 00:02:40]}
23. g4 {[%clk 00:06:03]} {[%emt 00:00:20]} f5 {[%clk 00:07:28]} {[%emt
00:02:37]} 24. Ng6 {[%clk 00:05:06]} {[%emt 00:01:03]} Rfe8 {[%clk 00:07:12]}
{[%emt 00:00:20]} 25. f3 {[%clk 00:04:41]} {[%emt 00:00:30]} Nf6 {[%clk
00:07:14]} {[%emt 00:00:02]} 26. g5 {[%clk 00:04:33]} {[%emt 00:00:14]} Nxh5
{[%clk 00:06:15]} {[%emt 00:01:03]} 27. gxh6 {[%clk 00:04:26]} {[%emt
00:00:13]} Kh7 {[%clk 00:06:07]} {[%emt 00:00:13]} 28. Ne5 {[%clk 00:03:37]}
{[%emt 00:00:54]} f4 {[%clk 00:04:03]} {[%emt 00:02:09]} 29. Bc1 {[%clk
00:03:04]} {[%emt 00:00:39]} Bxe5 {[%clk 00:03:39]} {[%emt 00:00:29]} 30. dxe5
{[%clk 00:03:06]} {[%emt 00:00:02]} g5 {[%clk 00:03:19]} {[%emt 00:00:24]} 31.
Rd6 {[%clk 00:02:44]} {[%emt 00:00:28]} Kxh6 {[%clk 00:02:47]} {[%emt
00:00:37]} 32. Rfd1 {[%clk 00:02:43]} {[%emt 00:00:06]} Rxd6 {[%clk 00:02:49]}
{[%emt 00:00:03]} 33. Rxd6 {[%clk 00:02:43]} {[%emt 00:00:06]} Re7 {[%clk
00:02:41]} {[%emt 00:00:11]} 34. b4 {[%clk 00:02:45]} {[%emt 00:00:04]} Kg6
{[%clk 00:02:11]} {[%emt 00:00:35]} 35. Bd2 {[%clk 00:02:45]} {[%emt 00:00:05]}
Kf5 {[%clk 00:02:08]} {[%emt 00:00:08]} 36. Bc3 {[%clk 00:02:48]} {[%emt
00:00:02]} g4 {[%clk 00:02:09]} {[%emt 00:00:04]} 37. fxg4+ {[%clk 00:02:51]}
{[%emt 00:00:03]} Kxg4 {[%clk 00:02:12]} {[%emt 00:00:01]} 38. Rd8 {[%clk
00:02:49]} {[%emt 00:00:08]} Rf7 {[%clk 00:01:55]} {[%emt 00:00:22]} 39. Be1
{[%clk 00:02:40]} {[%emt 00:00:13]} Kf3 {[%clk 00:01:43]} {[%emt 00:00:18]} 40.
Rh8 {[%clk 00:02:41]} {[%emt 00:00:04]} Ng7 {[%clk 00:01:37]} {[%emt 00:00:11]}
41. b5 {[%clk 00:02:43]} {[%emt 00:00:03]} cxb5 {[%clk 00:01:36]} {[%emt
00:00:05]} 42. cxb5 {[%clk 00:02:47]} {[%emt 00:00:02]} Ke2 {[%clk 00:01:39]}
{[%emt 00:00:02]} 43. Bc3 {[%clk 00:02:43]} {[%emt 00:00:09]} f3 {[%clk
00:01:41]} {[%emt 00:00:02]} 44. Bd4 {[%clk 00:02:43]} {[%emt 00:00:04]} f2
{[%clk 00:01:37]} {[%emt 00:00:10]} 45. Rh2 {[%clk 00:02:44]} {[%emt 00:00:04]}
Ke1 {[%clk 00:01:18]} {[%emt 00:00:24]} 46. Bc3 {[%clk 00:02:39]} {[%emt
00:00:10]} Kd1 {[%clk 00:01:20]} {[%emt 00:00:03]} 47. Kb2 {[%clk 00:02:35]}
{[%emt 00:00:09]} Nh5 {[%clk 00:00:39]} {[%emt 00:00:46]} 48. a4 {[%clk
00:02:22]} {[%emt 00:00:18]} Ng3 {[%clk 00:00:38]} {[%emt 00:00:06]} 0-1

[Event "Elite Hotels Open 2023"]
[Site "Elite Stadshotellet, Kungsgatan 6, Vaxjo, Sweden"]
[Date "2023.02.10"]
[Round "2.16"]
[White "Krantz, Christopher"]
[Black "Johansson, Roland"]
[Result "1-0"]
[TimeControl "15 minutes + 5 seconds per move from move one (Round 1 - 4) / 90 minutes + 30 seconds per move from move one (Round 5 - 8)"]
[WhiteFideId "1707876"]
[BlackFideId "1716123"]
[WhiteElo "2262"]
[BlackElo "1946"]

1. d4 {[%clk 00:15:06]} {[%emt 00:00:04]} f5 {[%clk 00:15:06]} {[%emt
00:00:05]} 2. Nf3 {[%clk 00:15:06]} {[%emt 00:00:04]} Nf6 {[%clk 00:15:10]}
{[%emt 00:00:02]} 3. Bf4 {[%clk 00:15:04]} {[%emt 00:00:07]} g6 {[%clk
00:15:13]} {[%emt 00:00:01]} 4. e3 {[%clk 00:14:54]} {[%emt 00:00:15]} Bg7
{[%clk 00:15:17]} {[%emt 00:00:02]} 5. c4 {[%clk 00:14:52]} {[%emt 00:00:07]}
d6 {[%clk 00:15:20]} {[%emt 00:00:01]} 6. h3 {[%clk 00:14:55]} {[%emt
00:00:02]} O-O {[%clk 00:15:22]} {[%emt 00:00:04]} 7. Nc3 {[%clk 00:14:57]}
{[%emt 00:00:02]} a6 {[%clk 00:15:21]} {[%emt 00:00:06]} 8. Be2 {[%clk
00:14:55]} {[%emt 00:00:07]} Qe8 {[%clk 00:15:22]} {[%emt 00:00:03]} 9. Rc1
{[%clk 00:14:39]} {[%emt 00:00:20]} Nc6 {[%clk 00:15:23]} {[%emt 00:00:04]} 10.
d5 {[%clk 00:14:33]} {[%emt 00:00:12]} Nd8 {[%clk 00:15:23]} {[%emt 00:00:05]}
11. O-O {[%clk 00:14:23]} {[%emt 00:00:16]} e5 {[%clk 00:15:23]} {[%emt
00:00:05]} 12. dxe6 {[%clk 00:14:14]} {[%emt 00:00:13]} Nxe6 {[%clk 00:15:25]}
{[%emt 00:00:03]} 13. Bh2 {[%clk 00:14:17]} {[%emt 00:00:02]} Bd7 {[%clk
00:14:47]} {[%emt 00:00:43]} 14. Nd5 {[%clk 00:13:24]} {[%emt 00:00:57]} Bc6
{[%clk 00:14:07]} {[%emt 00:00:46]} 15. Qc2 {[%clk 00:12:28]} {[%emt 00:01:01]}
Rc8 {[%clk 00:13:32]} {[%emt 00:00:40]} 16. Rfd1 {[%clk 00:12:26]} {[%emt
00:00:06]} Nc5 {[%clk 00:13:11]} {[%emt 00:00:27]} 17. Nb4 {[%clk 00:10:58]}
{[%emt 00:01:33]} Be4 {[%clk 00:12:21]} {[%emt 00:00:55]} 18. Qd2 {[%clk
00:11:02]} {[%emt 00:00:02]} h6 {[%clk 00:11:34]} {[%emt 00:00:51]} 19. Nd5
{[%clk 00:09:45]} {[%emt 00:01:22]} Rf7 {[%clk 00:10:28]} {[%emt 00:01:11]} 20.
b4 {[%clk 00:09:12]} {[%emt 00:00:37]} Ncd7 {[%clk 00:10:05]} {[%emt 00:00:28]}
21. Nxf6+ {[%clk 00:08:56]} {[%emt 00:00:22]} Bxf6 {[%clk 00:09:57]} {[%emt
00:00:14]} 22. c5 {[%clk 00:08:20]} {[%emt 00:00:40]} Bxf3 {[%clk 00:05:00]}
{[%emt 00:05:03]} 23. Bxf3 {[%clk 00:08:10]} {[%emt 00:00:14]} dxc5 {[%clk
00:04:41]} {[%emt 00:00:24]} 24. Bd5 {[%clk 00:07:06]} {[%emt 00:01:09]} Rd8
{[%clk 00:04:20]} {[%emt 00:00:26]} 25. Bxc7 {[%clk 00:06:22]} {[%emt
00:00:50]} 1-0